fUST/lending_fUST_20260504
["ID","MTS","AMOUNT","RATE_DAILY","PERIOD"]
[421533848,1777829453000,-1174.45,0.00016986,2]
[421533851,1777829453000,-500.0,0.00016986,2]
[421533849,1777829453000,-617.86,0.00016986,2]
[421533838,1777829453000,-500.0,0.00016986,2]
[421533843,1777829453000,-6708.99,0.00016986,2]
[421533850,1777829453000,-1265.89,0.00016986,2]
[421533846,1777829453000,-1052.11,0.00016986,2]
[421533861,1777829453000,-500.0,0.00016986,2]
[421533856,1777829453000,-5071.16,0.00016986,2]
[421533860,1777829453000,-560.63,0.00016986,2]
[421533840,1777829453000,-3933.08,0.00016986,2]
[421533854,1777829453000,-4654.88,0.00016986,2]
[421533852,1777829453000,-5295.02,0.00016986,2]
[421533853,1777829453000,-6211.08,0.00016986,2]
[421533863,1777829453000,-500.0,0.00016986,2]
[421533844,1777829453000,-500.0,0.00016986,2]
[421533842,1777829453000,-500.0,0.00016986,2]
[421533841,1777829453000,-5289.97,0.00016986,2]
[421533837,1777829453000,-1010.87,0.00016986,2]
[421533845,1777829453000,-500.0,0.00016986,2]
[421533847,1777829453000,-10745.19,0.00016986,2]
[421533902,1777829454000,-16803.35,0.00016986,2]
[421533903,1777829454000,-977.13703556,0.00016986,2]
[421533896,1777829454000,-500.0,0.00016986,2]
[421533894,1777829454000,-500.0,0.00016986,2]
[421533895,1777829454000,-1485.84,0.00016986,2]
[421533898,1777829454000,-358.02480401,0.00016986,2]
[421533901,1777829454000,-2364.25,0.00016986,2]
[421533897,1777829454000,-7874.84,0.00016986,2]
[421533900,1777829454000,-500.0,0.00016986,2]
[421533899,1777829454000,-500.0,0.00016986,2]
[421533905,1777829454000,-5690.69,0.00016712,2]
[421533904,1777829454000,-5690.69,0.00016438,2]
[421533912,1777829454000,-756.85469116,0.00016986,2]
[421533910,1777829454000,-1656.27314486,0.00016986,2]
[421533909,1777829454000,-637.68,0.00016986,2]
[421533913,1777829454000,4323.43049883,0.0001,2]
[421533908,1777829454000,-500.0,0.00016986,2]
[421533906,1777829454000,-6639.73296444,0.00016986,2]
[421533907,1777829454000,-1064.35,0.00016986,2]
[421533911,1777829454000,-2966.37331664,0.00016986,2]
[421533914,1777829455000,1767.07218853,7.6e-05,2]
[421533915,1777829455000,6810.0306589,7.6e-05,2]
[421534250,1777830252000,-243.82517463,8.439e-05,2]
[421534247,1777830252000,-2652.18542209,8.355e-05,2]
[421534249,1777830252000,-534.0,8.355e-05,2]
[421534248,1777830252000,-2347.81457791,8.355e-05,2]
[421534251,1777830252000,-214.38030355,8.439e-05,2]
[421534256,1777830252000,-2318.82423697,9.999e-05,2]
[421534254,1777830252000,-2938.44606266,9.425e-05,2]
[421534252,1777830252000,-2652.18542209,8.524e-05,2]
[421534255,1777830252000,-187.19368988,9.425e-05,2]
[421534257,1777830252000,-1084.08993392,9.999e-05,2]
[421534253,1777830252000,-285.49089906,8.654e-05,2]
[421534289,1777830632000,-1200.0,9.508e-05,2]
[421534288,1777830632000,-454.11381281,9.505e-05,2]
[421534291,1777830632000,-5000.0,9.605e-05,2]
[421534290,1777830632000,-5000.0,9.509e-05,2]
[421534292,1777830632000,-285.33559785,9.654e-05,2]
[421534293,1777830632000,-275.0,9.701e-05,2]
[421534294,1777830632000,-39776.89504136,0.0001,2]
[421534295,1777830632000,-5878.98087207,0.0001,2]
[421534287,1777830632000,-2186.0,9.414e-05,2]
[421534329,1777830638000,-300.0,0.00010107,2]
[421534325,1777830638000,-300.0,0.00010107,2]
[421534332,1777830638000,-300.0,0.00010107,2]
[421534326,1777830638000,-300.0,0.00010107,2]
[421534327,1777830638000,-300.0,0.00010107,2]
[421534330,1777830638000,-300.0,0.00010107,2]
[421534328,1777830638000,-300.0,0.00010107,2]
[421534331,1777830638000,-300.0,0.00010107,2]
[421534324,1777830638000,-300.0,0.00010107,2]
[421534322,1777830638000,-300.0,0.00010107,2]
[421534319,1777830638000,-300.0,0.00010107,2]
[421534318,1777830638000,-560.0,0.0001,2]
[421534320,1777830638000,-300.0,0.00010107,2]
[421534317,1777830638000,-987.40123636,0.0001,2]
[421534321,1777830638000,-300.0,0.00010107,2]
[421534316,1777830638000,-1538.17840722,0.0001,2]
[421534315,1777830638000,-3992.27447946,0.0001,2]
[421534334,1777830638000,-2687.58851647,0.00010107,2]
[421534323,1777830638000,-300.0,0.00010107,2]
[421534335,1777830638000,-600.0,0.00010199,2]
[421534338,1777830638000,-336.69600546,0.00011654,2]
[421534337,1777830638000,-4073.68886838,0.00011219,2]
[421534333,1777830638000,-300.0,0.00010107,2]
[421534353,1777830638000,-500.0,0.00013698,2]
[421534354,1777830638000,-500.0,0.00013698,2]
[421534350,1777830638000,-1000.0,0.00013575,2]
[421534351,1777830638000,-388.05641307,0.00013654,2]
[421534347,1777830638000,-3328.5479962,0.000129,2]
[421534348,1777830638000,-3328.5479962,0.000129,2]
[421534349,1777830638000,-269.56640304,0.00013365,14]
[421534346,1777830638000,-3328.54799626,0.000129,2]
[421534352,1777830638000,-500.0,0.00013698,2]
[421534343,1777830638000,-501.71,0.00012329,2]
[421534342,1777830638000,-602.05,0.00012329,2]
[421534345,1777830638000,-864.0,0.00012341,2]
[421534341,1777830638000,-722.46,0.00012329,2]
[421534339,1777830638000,-1040.34,0.00012329,2]
[421534355,1777830638000,-500.0,0.00013698,2]
[421534340,1777830638000,-866.95,0.00012329,2]
[421534336,1777830638000,-720.0,0.00011219,2]
[421534344,1777830638000,-501.71,0.00012329,2]
[421534397,1777830639000,-578.20924308,0.00015118,2]
[421534393,1777830639000,-3328.5479962,0.00015089,2]
[421534400,1777830639000,-644.79446246,0.00015283,2]
[421534396,1777830639000,-151.0,0.000151,2]
[421534395,1777830639000,-151.0,0.000151,2]
[421534398,1777830639000,-599.60298507,0.00015173,2]
[421534401,1777830639000,-668.65185757,0.00015338,2]
[421534399,1777830639000,-621.78829552,0.00015228,2]
[421534392,1777830639000,-421.134472,0.00015068,2]
[421534394,1777830639000,-151.0,0.000151,2]
[421534402,1777830639000,-160.0,0.00015369,2]
[421534408,1777830639000,-500.0,0.00015476,2]
[421534390,1777830639000,-151.84620433,0.00015008,2]
[421534410,1777830639000,-298.76462296,0.000155,2]
[421534413,1777830639000,-320.44973716,0.00015558,2]
[421534406,1777830639000,-298.76462296,0.000154,2]
[421534404,1777830639000,-160.0,0.00015375,2]
[421534415,1777830639000,-167.24,0.00015696,3]
[421534405,1777830639000,-693.3919763,0.00015393,2]
[421534414,1777830639000,-439.41682069,0.00015654,2]
[421534412,1777830639000,-2230.315306,0.00015556,2]
[421534409,1777830639000,-500.0,0.00015476,2]
[421534391,1777830639000,-557.5788265,0.00015063,2]
[421534411,1777830639000,-745.65223616,0.00015503,2]
[421534417,1777830639000,-1410.0,0.00015706,2]
[421534427,1777830639000,-5000.0,0.0001606,2]
[421534429,1777830639000,-500.0,0.00016136,2]
[421534428,1777830639000,-2312.83697232,0.00016104,2]
[421534416,1777830639000,-298.76462296,0.000157,2]
[421534407,1777830639000,-719.04747942,0.00015448,2]
[421534389,1777830639000,-2150.738,0.00015008,2]
[421534385,1777830639000,-162.380719,0.00015008,2]
[421534386,1777830639000,-537.6845,0.00015008,2]
[421534356,1777830639000,-500.0,0.00013698,2]
[421534358,1777830639000,-500.0,0.00013698,2]
[421534359,1777830639000,-500.0,0.00013698,2]
[421534357,1777830639000,-500.0,0.00013698,2]
[421534360,1777830639000,-500.0,0.00013698,2]
[421534361,1777830639000,-500.0,0.00013698,2]
[421534375,1777830639000,-7043.13531519,0.00014375,2]
[421534373,1777830639000,-500.0,0.00014273,2]
[421534374,1777830639000,-6287.47516031,0.00014275,2]
[421534362,1777830639000,-500.0,0.00013698,2]
[421534363,1777830639000,-500.0,0.00013698,2]
[421534365,1777830639000,-500.0,0.00013698,2]
[421534370,1777830639000,-500.0,0.00013813,2]
[421534369,1777830639000,-1000.0,0.00013699,2]
[421534364,1777830639000,-500.0,0.00013698,2]
[421534368,1777830639000,-824.949487,0.00013699,2]
[421534372,1777830639000,-3219.99721308,0.00014175,2]
[421534388,1777830639000,-537.6845,0.00015008,2]
[421534380,1777830639000,-10000.0,0.00014587,2]
[421534384,1777830639000,-171.78339638,0.00015008,2]
[421534382,1777830639000,-1000.0,0.00014932,2]
[421534377,1777830639000,-7798.79547016,0.00014475,2]
[421534381,1777830639000,-214.54418397,0.000149,2]
[421534387,1777830639000,-445.202766,0.00015008,2]
[421534383,1777830639000,-244.0,0.00014932,2]
[421534378,1777830639000,-10000.0,0.00014487,2]
[421534379,1777830639000,-7852.44376431,0.00014575,2]
[421534376,1777830639000,-487.01727069,0.00014474,2]
[421534367,1777830639000,-1000.0,0.00013699,2]
[421534366,1777830639000,-500.0,0.00013698,2]
[421534371,1777830639000,-3328.5479962,0.00013818,2]
[421534418,1777830639000,-2213.0,0.00015706,2]
[421534419,1777830639000,-646.0,0.00015706,2]
[421534403,1777830639000,-334.47,0.00015371,3]
[421534422,1777830639000,-275924.97776978,0.0001588,2]
[421534461,1777830639000,-500.0,0.00016438,2]
[421534462,1777830639000,-500.0,0.00016438,2]
[421534463,1777830639000,-500.0,0.00016438,2]
[421534465,1777830639000,-500.0,0.00016438,2]
[421534466,1777830639000,-2079.23,0.00016438,2]
[421534458,1777830639000,-7811.2393,0.00016438,2]
[421534467,1777830639000,-507.59,0.00016438,2]
[421534468,1777830639000,-833.5,0.00016438,2]
[421534469,1777830639000,-376.67567669,0.00016438,2]
[421534464,1777830639000,-500.0,0.00016438,2]
[421534470,1777830639000,-945.34,0.00016438,2]
[421534482,1777830639000,-500.0,0.00016438,2]
[421534471,1777830639000,-190.20241404,0.00016438,2]
[421534481,1777830639000,-500.0,0.00016438,2]
[421534460,1777830639000,-500.0,0.00016438,2]
[421534483,1777830639000,-535.99,0.00016438,2]
[421534478,1777830639000,-500.0,0.00016438,2]
[421534475,1777830639000,-500.0,0.00016438,2]
[421534474,1777830639000,-704.51109279,0.00016438,7]
[421534480,1777830639000,-966.17,0.00016438,2]
[421534477,1777830639000,-500.0,0.00016438,2]
[421534479,1777830639000,-2705.99,0.00016438,2]
[421534473,1777830639000,-500.0,0.00016438,2]
[421534476,1777830639000,-704.51109279,0.00016438,7]
[421534484,1777830639000,-500.0,0.00016438,2]
[421534486,1777830639000,-500.0,0.00016438,2]
[421534423,1777830639000,-501.73,0.0001597,3]
[421534488,1777830639000,-500.0,0.00016438,2]
[421534489,1777830639000,-500.0,0.00016438,2]
[421534485,1777830639000,-500.0,0.00016438,2]
[421534472,1777830639000,-500.0,0.00016438,2]
[421534459,1777830639000,-500.0,0.00016438,2]
[421534487,1777830639000,-500.0,0.00016438,2]
[421534453,1777830639000,-500.0,0.00016438,2]
[421534457,1777830639000,-500.0,0.00016438,2]
[421534425,1777830639000,-298.76462296,0.00016,2]
[421534420,1777830639000,-232.597,0.00015706,2]
[421534424,1777830639000,-42658.09000578,0.0001598,2]
[421534426,1777830639000,-704.51109279,0.0001603,7]
[421534430,1777830639000,-500.0,0.00016136,2]
[421534441,1777830639000,-500.0,0.00016336,2]
[421534436,1777830639000,-500.0,0.00016336,2]
[421534434,1777830639000,-500.0,0.00016335,2]
[421534437,1777830639000,-500.0,0.00016336,2]
[421534443,1777830639000,-500.0,0.00016336,2]
[421534432,1777830639000,-704.51109279,0.00016161,7]
[421534433,1777830639000,-464.628,0.000163,2]
[421534440,1777830639000,-500.0,0.00016336,2]
[421534431,1777830639000,-251.076,0.00016137,2]
[421534421,1777830639000,-298.76462296,0.000158,2]
[421534435,1777830639000,-500.0,0.00016335,2]
[421534438,1777830639000,-500.0,0.00016336,2]
[421534449,1777830639000,-492.0,0.00016426,2]
[421534450,1777830639000,-500.0,0.00016438,2]
[421534448,1777830639000,-1000.0,0.00016426,2]
[421534446,1777830639000,-500.0,0.00016336,2]
[421534455,1777830639000,-862.43,0.00016438,2]
[421534452,1777830639000,-511.92,0.00016438,2]
[421534444,1777830639000,-500.0,0.00016336,2]
[421534442,1777830639000,-500.0,0.00016336,2]
[421534447,1777830639000,-500.0,0.00016336,2]
[421534439,1777830639000,-500.0,0.00016336,2]
[421534451,1777830639000,-500.0,0.00016438,2]
[421534454,1777830639000,-677.6,0.00016438,2]
[421534456,1777830639000,-500.0,0.00016438,2]
[421534445,1777830639000,-621.72360685,0.00016336,2]
[421534533,1777830640000,-1313.58,0.00016438,2]
[421534540,1777830640000,-500.0,0.00016438,2]
[421534531,1777830640000,-502.68,0.00016438,2]
[421534525,1777830640000,-500.0,0.00016438,2]
[421534520,1777830640000,-500.0,0.00016438,2]
[421534536,1777830640000,-500.0,0.00016438,2]
[421534535,1777830640000,-500.0,0.00016438,2]
[421534545,1777830640000,-500.0,0.00016438,2]
[421534546,1777830640000,-1370.27,0.00016438,2]
[421534537,1777830640000,-500.0,0.00016438,2]
[421534539,1777830640000,-500.0,0.00016438,2]
[421534542,1777830640000,-500.0,0.00016438,2]
[421534534,1777830640000,-500.0,0.00016438,2]
[421534550,1777830640000,-535.09,0.00016438,2]
[421534544,1777830640000,-500.0,0.00016438,2]
[421534538,1777830640000,-1112.2,0.00016438,2]
[421534541,1777830640000,-500.0,0.00016438,2]
[421534548,1777830640000,-500.0,0.00016438,2]
[421534558,1777830640000,-801.71,0.00016438,2]
[421534547,1777830640000,-500.0,0.00016438,2]
[421534551,1777830640000,-645.73,0.00016438,2]
[421534555,1777830640000,-512.84,0.00016438,2]
[421534549,1777830640000,-500.0,0.00016438,2]
[421534554,1777830640000,-778.16,0.00016438,2]
[421534556,1777830640000,-500.0,0.00016438,2]
[421534532,1777830640000,-500.0,0.00016438,2]
[421534543,1777830640000,-500.0,0.00016438,2]
[421534530,1777830640000,-500.0,0.00016438,2]
[421534515,1777830640000,-1000.0,0.00016438,2]
[421534529,1777830640000,-624.92856599,0.00016438,2]
[421534553,1777830640000,-1024.99,0.00016438,2]
[421534494,1777830640000,-500.0,0.00016438,2]
[421534493,1777830640000,-500.0,0.00016438,2]
[421534496,1777830640000,-868.59,0.00016438,2]
[421534491,1777830640000,-500.0,0.00016438,2]
[421534495,1777830640000,-562.04,0.00016438,2]
[421534498,1777830640000,-500.0,0.00016438,2]
[421534497,1777830640000,-797.75,0.00016438,2]
[421534501,1777830640000,-856.2,0.00016438,2]
[421534499,1777830640000,-500.0,0.00016438,2]
[421534500,1777830640000,-500.0,0.00016438,2]
[421534502,1777830640000,-961.96,0.00016438,2]
[421534522,1777830640000,-500.0,0.00016438,2]
[421534504,1777830640000,-500.0,0.00016438,2]
[421534505,1777830640000,-500.0,0.00016438,2]
[421534503,1777830640000,-500.0,0.00016438,2]
[421534512,1777830640000,-500.0,0.00016438,2]
[421534506,1777830640000,-786.8,0.00016438,2]
[421534508,1777830640000,-604.08215858,0.00016438,2]
[421534513,1777830640000,-843.69,0.00016438,2]
[421534509,1777830640000,-817.29,0.00016438,2]
[421534507,1777830640000,-500.0,0.00016438,2]
[421534511,1777830640000,-959.84,0.00016438,2]
[421534516,1777830640000,-500.0,0.00016438,2]
[421534518,1777830640000,-785.41,0.00016438,2]
[421534527,1777830640000,-179.20845238,0.00016438,2]
[421534514,1777830640000,-2417.47,0.00016438,2]
[421534552,1777830640000,-2534.56,0.00016438,2]
[421534608,1777830640000,-512.46,0.00016438,2]
[421534560,1777830640000,-500.0,0.00016438,2]
[421534598,1777830640000,-500.0,0.00016438,2]
[421534589,1777830640000,-1958.33,0.00016438,2]
[421534588,1777830640000,-551.29594725,0.00016438,2]
[421534591,1777830640000,-500.0,0.00016438,2]
[421534590,1777830640000,-500.0,0.00016438,2]
[421534596,1777830640000,-1317.59,0.00016438,2]
[421534594,1777830640000,-229.0582,0.00016438,2]
[421534592,1777830640000,-500.0,0.00016438,2]
[421534593,1777830640000,-500.0,0.00016438,2]
[421534599,1777830640000,-500.0,0.00016438,2]
[421534601,1777830640000,-500.0,0.00016438,2]
[421534602,1777830640000,-500.59046223,0.00016438,2]
[421534586,1777830640000,-500.0,0.00016438,2]
[421534600,1777830640000,-206.76938496,0.00016438,2]
[421534614,1777830640000,-409.78618066,0.00016438,2]
[421534611,1777830640000,-500.0,0.00016438,2]
[421534610,1777830640000,-500.0,0.00016438,2]
[421534609,1777830640000,-3697.6,0.00016438,2]
[421534607,1777830640000,-500.0,0.00016438,2]
[421534605,1777830640000,-2999.73,0.00016438,2]
[421534606,1777830640000,-1839.89,0.00016438,2]
[421534613,1777830640000,-500.0,0.00016438,2]
[421534616,1777830640000,-500.0,0.00016438,2]
[421534612,1777830640000,-500.0,0.00016438,2]
[421534615,1777830640000,-676.63,0.00016438,2]
[421534557,1777830640000,-2860.31,0.00016438,2]
[421534603,1777830640000,-500.0,0.00016438,2]
[421534597,1777830640000,-500.0,0.00016438,2]
[421534604,1777830640000,-516.47,0.00016438,2]
[421534587,1777830640000,-1164.05,0.00016438,2]
[421534570,1777830640000,-543.9,0.00016438,2]
[421534595,1777830640000,-652.04,0.00016438,2]
[421534571,1777830640000,-500.0,0.00016438,2]
[421534559,1777830640000,-875.13,0.00016438,2]
[421534562,1777830640000,-809.83,0.00016438,2]
[421534563,1777830640000,-500.0,0.00016438,2]
[421534564,1777830640000,-617.89,0.00016438,2]
[421534561,1777830640000,-500.0,0.00016438,2]
[421534565,1777830640000,-604.27,0.00016438,2]
[421534567,1777830640000,-500.0,0.00016438,2]
[421534566,1777830640000,-500.0,0.00016438,2]
[421534569,1777830640000,-500.0,0.00016438,2]
[421534572,1777830640000,-500.0,0.00016438,2]
[421534568,1777830640000,-537.01,0.00016438,2]
[421534574,1777830640000,-500.0,0.00016438,2]
[421534573,1777830640000,-1381.28,0.00016438,2]
[421534582,1777830640000,-500.0,0.00016438,2]
[421534583,1777830640000,-911.86,0.00016438,2]
[421534577,1777830640000,-500.0,0.00016438,2]
[421534576,1777830640000,-500.0,0.00016438,2]
[421534578,1777830640000,-930.43,0.00016438,2]
[421534575,1777830640000,-500.0,0.00016438,2]
[421534579,1777830640000,-500.0,0.00016438,2]
[421534581,1777830640000,-500.0,0.00016438,2]
[421534584,1777830640000,-476.98533905,0.00016438,2]
[421534585,1777830640000,-500.0,0.00016438,2]
[421534580,1777830640000,-500.0,0.00016438,2]
[421534657,1777830641000,-2305.6,0.00016438,2]
[421534659,1777830641000,-500.0,0.00016438,2]
[421534660,1777830641000,-1263.64,0.00016438,2]
[421534658,1777830641000,-2422.97,0.00016438,2]
[421534664,1777830641000,-912.8,0.00016438,2]
[421534655,1777830641000,-551.67,0.00016438,2]
[421534656,1777830641000,-600.87,0.00016438,2]
[421534651,1777830641000,-5445.57,0.00016438,2]
[421534654,1777830641000,-704.29,0.00016438,2]
[421534652,1777830641000,-537.13767199,0.00016438,2]
[421534653,1777830641000,-500.0,0.00016438,2]
[421534663,1777830641000,-500.0,0.00016438,2]
[421534662,1777830641000,-500.0,0.00016438,2]
[421534661,1777830641000,-564.05132605,0.00016438,2]
[421534677,1777830641000,-500.0,0.00016438,2]
[421534676,1777830641000,-1218.02,0.00016438,2]
[421534669,1777830641000,-626.2,0.00016438,2]
[421534665,1777830641000,-726.32,0.00016438,2]
[421534667,1777830641000,-500.0,0.00016438,2]
[421534668,1777830641000,-500.0,0.00016438,2]
[421534673,1777830641000,-1304.65,0.00016438,2]
[421534671,1777830641000,-500.0,0.00016438,2]
[421534674,1777830641000,-1386.75,0.00016438,2]
[421534672,1777830641000,-500.0,0.00016438,2]
[421534670,1777830641000,-500.0,0.00016438,2]
[421534675,1777830641000,-500.0,0.00016438,2]
[421534679,1777830641000,-1236.2,0.00016438,2]
[421534678,1777830641000,-2144.31,0.00016438,2]
[421534645,1777830641000,-1073.56,0.00016438,2]
[421534666,1777830641000,-500.0,0.00016438,2]
[421534648,1777830641000,-707.96,0.00016438,2]
[421534620,1777830641000,-500.0,0.00016438,2]
[421534646,1777830641000,-1624.46,0.00016438,2]
[421534623,1777830641000,-500.0,0.00016438,2]
[421534624,1777830641000,-500.0,0.00016438,2]
[421534618,1777830641000,-500.0,0.00016438,2]
[421534689,1777830641000,-580.46,0.00016438,2]
[421534619,1777830641000,-500.0,0.00016438,2]
[421534622,1777830641000,-1349.79,0.00016438,2]
[421534617,1777830641000,-1542.09,0.00016438,2]
[421534621,1777830641000,-500.0,0.00016438,2]
[421534625,1777830641000,-500.0,0.00016438,2]
[421534628,1777830641000,-500.0,0.00016438,2]
[421534636,1777830641000,-500.0,0.00016438,2]
[421534626,1777830641000,-647.02128219,0.00016438,2]
[421534631,1777830641000,-500.0,0.00016438,2]
[421534627,1777830641000,-1319.8,0.00016438,2]
[421534630,1777830641000,-500.0,0.00016438,2]
[421534637,1777830641000,-418.79145994,0.00016438,2]
[421534629,1777830641000,-500.0,0.00016438,2]
[421534634,1777830641000,-500.0,0.00016438,2]
[421534632,1777830641000,-553.99,0.00016438,2]
[421534635,1777830641000,-5498.23,0.00016438,2]
[421534650,1777830641000,-912.58,0.00016438,2]
[421534638,1777830641000,-1127.4,0.00016438,2]
[421534639,1777830641000,-500.0,0.00016438,2]
[421534649,1777830641000,-2754.01,0.00016438,2]
[421534640,1777830641000,-950.38,0.00016438,2]
[421534641,1777830641000,-500.0,0.00016438,2]
[421534643,1777830641000,-500.0,0.00016438,2]
[421534642,1777830641000,-500.0,0.00016438,2]
[421534644,1777830641000,-500.0,0.00016438,2]
[421534647,1777830641000,-656.16,0.00016438,2]
[421534682,1777830641000,-500.0,0.00016438,2]
[421534633,1777830641000,-375.76372334,0.00016438,2]
[421534681,1777830641000,-3299.61,0.00016438,2]
[421534727,1777830641000,-500.0,0.00016438,2]
[421534718,1777830641000,-531.88,0.00016438,2]
[421534729,1777830641000,-500.0,0.00016438,2]
[421534719,1777830641000,-500.0,0.00016438,2]
[421534723,1777830641000,-548.44,0.00016438,2]
[421534716,1777830641000,-500.0,0.00016438,2]
[421534728,1777830641000,-500.0,0.00016438,2]
[421534720,1777830641000,-500.0,0.00016438,2]
[421534721,1777830641000,-500.0,0.00016438,2]
[421534726,1777830641000,-500.0,0.00016438,2]
[421534725,1777830641000,-474.53605112,0.00016438,2]
[421534724,1777830641000,-965.17,0.00016438,2]
[421534730,1777830641000,-1093.21,0.00016438,2]
[421534734,1777830641000,-500.0,0.00016438,2]
[421534732,1777830641000,-5485.84,0.00016438,2]
[421534742,1777830641000,-1332.75,0.00016438,2]
[421534733,1777830641000,-512.10367197,0.00016438,2]
[421534743,1777830641000,-760.82,0.00016438,2]
[421534737,1777830641000,-500.0,0.00016438,2]
[421534735,1777830641000,-500.0,0.00016438,2]
[421534736,1777830641000,-438.51723017,0.00016438,2]
[421534740,1777830641000,-500.0,0.00016438,2]
[421534739,1777830641000,-500.0,0.00016438,2]
[421534738,1777830641000,-500.0,0.00016438,2]
[421534741,1777830641000,-438.0746828,0.00016438,2]
[421534731,1777830641000,-500.0,0.00016438,2]
[421534745,1777830641000,-500.0,0.00016438,2]
[421534744,1777830641000,-549.64,0.00016438,2]
[421534680,1777830641000,-500.0,0.00016438,2]
[421534722,1777830641000,-500.0,0.00016438,2]
[421534717,1777830641000,-500.0,0.00016438,2]
[421534746,1777830641000,-500.0,0.00016438,2]
[421534714,1777830641000,-500.0,0.00016438,2]
[421534688,1777830641000,-500.0,0.00016438,2]
[421534711,1777830641000,-500.0,0.00016438,2]
[421534687,1777830641000,-1160.05,0.00016438,2]
[421534685,1777830641000,-597.19,0.00016438,2]
[421534683,1777830641000,-1854.09,0.00016438,2]
[421534684,1777830641000,-500.0,0.00016438,2]
[421534692,1777830641000,-500.0,0.00016438,2]
[421534693,1777830641000,-545.77,0.00016438,2]
[421534690,1777830641000,-837.93,0.00016438,2]
[421534694,1777830641000,-5476.24,0.00016438,2]
[421534695,1777830641000,-500.0,0.00016438,2]
[421534697,1777830641000,-500.0,0.00016438,2]
[421534696,1777830641000,-500.0,0.00016438,2]
[421534699,1777830641000,-876.34,0.00016438,2]
[421534698,1777830641000,-868.84,0.00016438,2]
[421534686,1777830641000,-500.0,0.00016438,2]
[421534691,1777830641000,-728.08,0.00016438,2]
[421534700,1777830641000,-198.72585772,0.00016438,2]
[421534704,1777830641000,-500.0,0.00016438,2]
[421534707,1777830641000,-500.0,0.00016438,2]
[421534712,1777830641000,-500.0,0.00016438,2]
[421534710,1777830641000,-534.89,0.00016438,2]
[421534715,1777830641000,-500.0,0.00016438,2]
[421534709,1777830641000,-615.4,0.00016438,2]
[421534713,1777830641000,-500.0,0.00016438,2]
[421534706,1777830641000,-500.0,0.00016438,2]
[421534705,1777830641000,-182.08212405,0.00016438,2]
[421534703,1777830641000,-500.0,0.00016438,2]
[421534702,1777830641000,-500.0,0.00016438,2]
[421534701,1777830641000,-500.0,0.00016438,2]
[421534708,1777830641000,-500.0,0.00016438,2]
[421534787,1777830642000,-500.0,0.00016438,2]
[421534790,1777830642000,-500.0,0.00016438,2]
[421534786,1777830642000,-539.48,0.00016438,2]
[421534788,1777830642000,-524.92,0.00016438,2]
[421534777,1777830642000,-500.0,0.00016438,2]
[421534782,1777830642000,-548.77,0.00016438,2]
[421534783,1777830642000,-500.0,0.00016438,2]
[421534784,1777830642000,-562.04,0.00016438,2]
[421534781,1777830642000,-725.6,0.00016438,2]
[421534780,1777830642000,-500.0,0.00016438,2]
[421534785,1777830642000,-961.53,0.00016438,2]
[421534800,1777830642000,-500.0,0.00016438,2]
[421534797,1777830642000,-4469.48,0.00016438,2]
[421534793,1777830642000,-15197.79,0.00016438,2]
[421534792,1777830642000,-500.0,0.00016438,2]